bitfinex/quotes_BTCUSD_20250218
["timestamp","ask_amount","ask_price","bid_price","bid_amount"]
[1739898424818,0.15,94935.0,94934.0,0.158004]
[1739898425028,0.15,94935.0,94934.0,0.26050765]
[1739898425237,0.15,94935.0,94934.0,0.10250365]
[1739898425441,0.01081402,94944.0,94934.0,0.10250365]
[1739898425648,0.01081402,94944.0,94935.0,0.04271037]
[1739898426348,0.15,94942.0,94934.0,0.10250365]
[1739898426764,0.157994,94940.0,94934.0,0.10250365]
[1739898426976,0.157994,94940.0,94929.0,0.3286]
[1739898426977,0.15,94942.0,94929.0,0.3246]
[1739898427240,0.15,94942.0,94935.0,0.001]
[1739898427663,0.157992,94941.0,94931.0,0.158008]
[1739898427876,0.307992,94942.0,94934.0,0.002]
[1739898428053,0.15,94942.0,94934.0,0.10250365]
[1739898428371,0.157994,94940.0,94935.0,0.03432761]
[1739898428602,0.157993,94941.0,94935.0,0.03432761]
[1739898428807,0.15,94943.0,94935.0,0.03432761]
[1739898429162,0.157991,94942.0,94935.0,0.03432761]
[1739898429367,0.157991,94942.0,94935.0,0.03632761]
[1739898429564,0.157994,94940.0,94936.0,0.08321103]
[1739898429978,0.157992,94942.0,94936.0,0.08321103]
[1739898430392,0.15,94943.0,94934.0,0.10250365]
[1739898430649,0.157996,94939.0,94935.0,0.002]
[1739898430886,0.16880202,94944.0,94935.0,0.002]
[1739898431114,0.157991,94942.0,94935.0,0.002]
[1739898431341,0.15,94943.0,94935.0,0.002]
[1739898431566,0.158001,94936.0,94935.0,0.002]
[1739898431795,0.15,94943.0,94935.0,0.002]
[1739898431996,0.158001,94936.0,94935.0,0.002]
[1739898432590,0.158011,94930.0,94929.0,0.30993333]
[1739898432734,0.14975007,94940.0,94929.0,0.30993333]
[1739898432938,0.210675,94933.0,94929.0,0.30993333]
[1739898433292,0.368687,94932.0,94929.0,0.30993333]
[1739898433504,0.158011,94930.0,94929.0,0.30993333]
[1739898434349,0.158039,94913.0,94912.0,0.30993333]
[1739898434755,0.308039,94913.0,94912.0,0.30993333]
[1739898435092,0.308039,94913.0,94891.0,0.048]
[1739898435093,0.15,94912.0,94891.0,0.048]
[1739898435337,0.15,94909.0,94893.0,0.10250365]
[1739898435511,0.210743,94902.0,94893.0,0.41287906]
[1739898435712,0.15,94909.0,94893.0,0.41287906]
[1739898435914,0.13,94917.0,94893.0,0.41287906]
[1739898435915,0.158068,94896.0,94893.0,0.41287906]
[1739898436274,0.15,94902.0,94893.0,0.31037541]
[1739898436465,0.0804,94927.0,94894.0,0.1455437]
[1739898436665,0.2119,94926.0,94894.0,0.14448995]
[1739898436804,0.158029,94919.0,94910.0,0.158042]
[1739898437009,0.22121433,94926.0,94911.0,0.158042]
[1739898437224,0.02066082,94917.0,94897.0,0.31098695]
[1739898437467,0.0165085,94917.0,94916.0,0.158034]
[1739898437666,0.0165085,94917.0,94916.0,0.26053765]
[1739898437867,0.0165085,94917.0,94916.0,0.30873765]
[1739898438180,0.01076399,94933.0,94916.0,1.00633698]
[1739898438382,0.210655,94942.0,94918.0,0.210708]
[1739898438583,0.157991,94942.0,94934.0,0.158004]
[1739898438765,0.15799,94943.0,94935.0,0.158002]
[1739898438968,0.01650582,94942.0,94921.0,0.30993333]
[1739898439230,0.210657,94941.0,94931.0,0.158009]
[1739898439423,0.157996,94939.0,94932.0,0.10250365]
[1739898439576,0.157994,94940.0,94932.0,0.26051065]
[1739898439776,0.00013257,94940.0,94932.0,0.10250365]
[1739898439974,0.00013257,94940.0,94933.0,0.01025037]
[1739898440628,0.00013257,94940.0,94915.0,0.0809]
[1739898440827,0.00013257,94940.0,94922.0,0.10250365]
[1739898441003,0.00013257,94940.0,94923.0,0.00105338]
[1739898441191,0.00013257,94940.0,94939.0,0.157996]
[1739898441378,0.00013257,94940.0,94924.0,0.10250365]
[1739898441585,0.00013257,94940.0,94925.0,0.2519357]
[1739898441809,0.00013257,94940.0,94926.0,0.10250365]
[1739898442047,0.00013257,94940.0,94931.0,0.158008]
[1739898442270,0.00013257,94940.0,94932.0,0.158007]
[1739898442451,0.00013257,94940.0,94931.0,0.10250365]
[1739898442713,0.00013257,94940.0,94932.0,0.01437474]
[1739898442917,0.00013257,94940.0,94931.0,0.10250365]
[1739898443757,0.00013257,94940.0,94933.0,0.158005]
[1739898443960,0.00013257,94940.0,94933.0,0.158004]
[1739898444310,0.00013257,94940.0,94938.0,0.157997]
[1739898445288,0.00013257,94940.0,94939.0,0.10250365]
[1739898445489,0.00013257,94940.0,94939.0,0.15769654]
[1739898446643,0.00013257,94940.0,94939.0,0.31569254]
[1739898447311,0.00013257,94940.0,94939.0,0.67112587]
[1739898448468,0.00013257,94940.0,94939.0,0.67612587]
[1739898448672,0.00013257,94940.0,94939.0,0.67112587]
[1739898448909,0.00013257,94940.0,94939.0,0.75542587]
[1739898449289,0.00013257,94940.0,94939.0,0.74842587]
[1739898449519,0.00013257,94940.0,94939.0,1.30112587]
[1739898449724,0.00013257,94940.0,94939.0,1.30876977]
[1739898449936,0.00013257,94940.0,94939.0,1.30176977]
[1739898450125,0.00030277,94940.0,94939.0,1.30876977]
[1739898450333,7.7e-07,94940.0,94939.0,1.35176977]
[1739898450667,0.0001702,94948.0,94947.0,0.157982]
[1739898450668,1.7e-07,94948.0,94947.0,0.157982]
[1739898450867,1.7e-07,94948.0,94947.0,0.38007756]
[1739898451123,1.7e-07,94948.0,94947.0,0.37902473]
[1739898453297,1.7e-07,94948.0,94947.0,0.38602473]
[1739898455781,1.7e-07,94948.0,94947.0,0.69595806]
[1739898457585,1.7e-07,94948.0,94947.0,0.69575806]
[1739898460303,1.7e-07,94948.0,94947.0,0.61575806]
[1739898462116,1.7e-07,94948.0,94947.0,0.41943698]
[1739898462885,0.01311657,94948.0,94947.0,0.41943698]
[1739898463128,1.7e-07,94948.0,94947.0,0.41943698]
[1739898463349,1.7e-07,94948.0,94947.0,0.57741898]
[1739898463642,1.7e-07,94948.0,94947.0,0.57041898]
[1739898463943,1.7e-07,94948.0,94947.0,0.57741898]
[1739898467005,1.7e-07,94948.0,94947.0,0.65951898]
[1739898467432,1.7e-07,94948.0,94947.0,0.70581898]
[1739898468181,1.7e-07,94948.0,94947.0,0.62371898]
[1739898468938,1.7e-07,94948.0,94947.0,0.57741898]
[1739898469211,1.7e-07,94948.0,94947.0,0.67992263]
[1739898472113,1.7e-07,94948.0,94947.0,0.52194063]
[1739898472317,1.7e-07,94948.0,94947.0,0.67992263]
[1739898472518,1.7e-07,94948.0,94947.0,0.52194063]
[1739898472800,1.7e-07,94948.0,94947.0,0.67992263]
[1739898473467,0.15798117,94948.0,94947.0,0.52194063]
[1739898473673,1.7e-07,94948.0,94947.0,0.41943698]
[1739898474738,0.15798117,94948.0,94947.0,0.31693333]
[1739898474940,1.7e-07,94948.0,94947.0,0.31693333]
[1739898475409,1.7e-07,94948.0,94947.0,0.41943698]
[1739898475586,1.7e-07,94948.0,94947.0,0.67992263]
[1739898476264,1.7e-07,94948.0,94947.0,0.52194063]
[1739898476689,1.7e-07,94948.0,94947.0,0.67992263]
[1739898476867,1.7e-07,94948.0,94947.0,0.67292263]
[1739898477080,1.7e-07,94948.0,94947.0,0.67326303]
[1739898477250,1.7e-07,94948.0,94947.0,0.51828103]
[1739898477463,1.7e-07,94948.0,94947.0,0.51528103]
[1739898477865,1.7e-07,94948.0,94947.0,0.67926303]
[1739898478077,1.7e-07,94948.0,94947.0,0.51528103]
[1739898478306,1.7e-07,94948.0,94947.0,0.52128103]
[1739898478645,1.7e-07,94948.0,94947.0,0.51528103]
[1739898478862,1.7e-07,94948.0,94947.0,0.41277738]
[1739898479063,1.7e-07,94948.0,94947.0,0.31027373]
[1739898479273,0.15798117,94948.0,94947.0,0.31027373]
[1739898479678,1.7e-07,94948.0,94947.0,0.31027373]
[1739898480306,0.15798117,94948.0,94947.0,0.31027373]
[1739898480536,1.7e-07,94948.0,94947.0,0.31427373]
[1739898480750,0.04236129,94960.0,94947.0,0.31027373]
[1739898481126,0.15,94957.0,94947.0,0.31427373]
[1739898481336,0.157981,94948.0,94947.0,0.31427373]
[1739898481931,0.157981,94948.0,94947.0,0.31027373]
[1739898482569,0.157981,94948.0,94947.0,0.0003404]
[1739898483536,0.238481,94948.0,94947.0,0.0003404]
[1739898483952,0.157981,94948.0,94947.0,0.0043404]
[1739898484149,0.157981,94948.0,94947.0,0.0003404]
[1739898484343,0.157981,94948.0,94947.0,0.0043404]
[1739898484726,0.15,94953.0,94947.0,0.0043404]
[1739898484978,0.157981,94948.0,94947.0,0.0043404]
[1739898485290,0.15,94953.0,94947.0,0.0003404]
[1739898485431,0.157981,94948.0,94947.0,0.0043404]
[1739898485829,0.15,94953.0,94947.0,0.0043404]
[1739898486103,0.157981,94948.0,94947.0,0.0043404]
[1739898486917,0.157981,94948.0,94947.0,0.0003404]
[1739898487330,0.157981,94948.0,94947.0,0.0023404]
[1739898487535,0.01650272,94952.0,94947.0,0.0023404]
[1739898487691,0.01650272,94952.0,94951.0,0.157976]
[1739898487888,0.01650272,94952.0,94949.0,0.157979]
[1739898488069,0.01650272,94952.0,94950.0,0.04543098]
[1739898488275,0.06,94954.0,94951.0,0.26047965]
[1739898488479,0.06,94954.0,94953.0,0.157972]
[1739898488681,0.06,94954.0,94953.0,0.57146202]
[1739898488902,0.06,94954.0,94953.0,0.57040898]
[1739898489075,0.06,94954.0,94953.0,0.67291263]
[1739898490109,0.06,94954.0,94953.0,0.41243698]
[1739898491307,0.06,94954.0,94953.0,0.41843698]
[1739898492543,0.06,94954.0,94953.0,0.31593333]
[1739898493220,0.06,94954.0,94953.0,0.30993333]
[1739898493390,0.06,94954.0,94953.0,0.31693333]
[1739898493745,0.217971,94954.0,94953.0,0.30993333]
[1739898493947,0.217971,94954.0,94953.0,0.31293333]
[1739898494315,0.217971,94954.0,94943.0,0.30993333]
[1739898494515,0.157977,94950.0,94943.0,0.30993333]
[1739898494675,0.157975,94952.0,94943.0,0.30993333]
[1739898495190,0.217971,94954.0,94953.0,0.003]
[1739898496408,0.157973,94953.0,94943.0,0.30993333]
[1739898496606,0.06,94954.0,94943.0,0.30993333]
[1739898496968,0.157979,94950.0,94947.0,0.0043404]
[1739898497168,0.06,94954.0,94947.0,0.0003404]
[1739898497374,0.428599,94954.0,94953.0,0.003]
[1739898497735,0.157976,94952.0,94947.0,0.0003404]
[1739898497931,0.157976,94952.0,94947.0,0.0033404]
[1739898498133,0.157973,94953.0,94947.0,0.0033404]
[1739898498376,0.06,94954.0,94947.0,0.0003404]
[1739898499387,0.06,94954.0,94949.0,0.157979]
[1739898499590,0.06,94954.0,94953.0,0.003]
[1739898500022,0.06,94954.0,94950.0,0.10250365]
[1739898500858,0.06,94954.0,94953.0,0.157972]
[1739898501278,0.06,94954.0,94953.0,0.26047565]
[1739898501480,0.06,94954.0,94953.0,0.34510446]
[1739898502716,0.06,94954.0,94953.0,0.65103779]
[1739898503350,0.06,94954.0,94953.0,1.19673779]
[1739898503557,0.06,94954.0,94953.0,1.20373779]
[1739898503741,0.06,94954.0,94953.0,1.19673779]
[1739898504115,0.06,94954.0,94953.0,1.20373779]
[1739898506428,0.06,94954.0,94953.0,1.19673779]
[1739898506577,0.06,94954.0,94953.0,1.20373779]
[1739898506779,0.06,94954.0,94953.0,1.21094979]
[1739898507385,0.06,94954.0,94953.0,1.20394979]
[1739898507937,0.06,94954.0,94953.0,1.21094979]
[1739898508309,0.06,94954.0,94953.0,0.97234898]
[1739898508509,0.06,94954.0,94953.0,1.13032098]
[1739898509033,0.06,94954.0,94953.0,1.12332098]
[1739898509232,0.06,94954.0,94953.0,0.58462098]
[1739898509414,0.06,94954.0,94953.0,0.42664898]
[1739898509777,0.06,94954.0,94953.0,0.57762098]
[1739898509964,0.06,94954.0,94953.0,0.64110782]
[1739898510176,0.06,94954.0,94953.0,0.58462098]
[1739898512215,0.06,94954.0,94953.0,0.42664898]
[1739898513038,0.217971,94954.0,94953.0,0.42664898]
[1739898513584,0.217971,94954.0,94953.0,0.014212]
[1739898514006,0.367971,94954.0,94953.0,0.014212]
[1739898515267,0.367971,94954.0,94953.0,0.007212]
[1739898515671,0.2321,94937.0,94924.0,0.30993333]
[1739898515878,0.2321,94937.0,94912.0,0.30993333]
[1739898516082,0.158016,94928.0,94917.0,0.10250365]
[1739898516286,0.158017,94927.0,94917.0,0.26053565]
[1739898516491,0.14936649,94930.0,94917.0,0.2050073]
[1739898516697,0.1713581,94932.0,94917.0,0.2050073]
[1739898516869,0.01264153,94930.0,94925.0,0.158018]
[1739898517100,0.14936649,94950.0,94926.0,0.10250365]
[1739898517229,0.2999,94949.0,94926.0,0.10250365]
[1739898517435,0.17048604,94940.0,94926.0,0.10250365]
[1739898517636,0.210663,94938.0,94926.0,0.10250365]
[1739898517845,0.158002,94936.0,94926.0,0.29194596]
[1739898518829,0.158003,94935.0,94926.0,0.29194596]
[1739898519312,0.158003,94935.0,94926.0,0.29394596]
[1739898519523,0.17048604,94940.0,94926.0,0.34661796]
[1739898519730,0.210661,94939.0,94926.0,0.13392896]
[1739898519933,0.16212875,94950.0,94926.0,0.10250365]
[1739898520090,0.16212875,94950.0,94927.0,0.0479]
[1739898520091,0.03432254,94950.0,94927.0,0.0479]
[1739898520299,0.0601163,94954.0,94929.0,0.210683]
[1739898520524,0.0601163,94954.0,94927.0,0.0479]
[1739898520525,0.0601163,94954.0,94931.0,0.210679]
[1739898520725,0.09408934,94954.0,94932.0,0.45788385]
[1739898520956,0.09408934,94954.0,94943.0,0.21065]
[1739898521126,0.09408934,94954.0,94945.0,0.210648]
[1739898521330,0.07280572,94954.0,94953.0,0.157972]
[1739898521536,0.07280572,94954.0,94953.0,0.32865082]
[1739898521850,0.0601163,94954.0,94953.0,0.32865082]
[1739898522637,0.15,94969.0,94953.0,0.32865082]
[1739898522993,0.0003406,94971.0,94966.0,0.2106]
[1739898523195,0.0003406,94971.0,94970.0,0.157944]
[1739898523392,0.0003406,94971.0,94970.0,0.40474815]
[1739898523591,0.0003406,94971.0,94970.0,0.71468148]
[1739898525244,0.00040106,94971.0,94970.0,0.71468148]
[1739898525417,0.00040106,94971.0,94970.0,0.72168148]
[1739898525805,0.00040106,94971.0,94970.0,0.70668148]
[1739898525989,0.00040106,94971.0,94970.0,0.71368148]
[1739898526886,0.00040106,94971.0,94970.0,0.70668148]
[1739898527103,0.00040106,94971.0,94970.0,1.25238148]
[1739898527330,0.00040106,94971.0,94970.0,1.25938148]
[1739898527999,0.00040106,94971.0,94970.0,1.45538148]
[1739898528485,6.6e-07,94973.0,94972.0,0.259741]
[1739898528685,6.6e-07,94973.0,94972.0,0.49651982]
[1739898529740,2.6e-07,94984.0,94983.0,0.238622]
[1739898529853,2.6e-07,94984.0,94983.0,0.41052565]
[1739898530922,2.6e-07,94984.0,94983.0,0.41052565]
[1739898532229,2.6e-07,94984.0,94983.0,0.41752565]
[1739898532428,2.6e-07,94984.0,94983.0,0.41052565]
[1739898532638,2.6e-07,94984.0,94983.0,0.47732615]
[1739898532838,2.6e-07,94984.0,94983.0,1.33995948]
[1739898533038,2.6e-07,94984.0,94983.0,1.33295948]
[1739898533502,2.6e-07,94984.0,94983.0,1.33995948]
[1739898533706,2.6e-07,94984.0,94983.0,1.33295948]
[1739898535333,2.6e-07,94984.0,94983.0,1.33995948]
[1739898535538,2.6e-07,94984.0,94983.0,1.30995948]
[1739898536177,2.6e-07,94984.0,94983.0,1.31695948]
[1739898536761,2.6e-07,94984.0,94983.0,1.30995948]
[1739898536963,2.6e-07,94984.0,94983.0,1.31695948]
[1739898538235,2.6e-07,94984.0,94983.0,1.30995948]
[1739898538632,2.6e-07,94984.0,94983.0,1.31695948]
[1739898538833,2.6e-07,94984.0,94983.0,1.30995948]
[1739898539241,4.6e-07,94989.0,94988.0,0.157914]
[1739898539537,4.6e-07,94989.0,94988.0,1.18422615]
[1739898541318,4.6e-07,94989.0,94988.0,1.19669913]
[1739898541522,0.39990783,95000.0,94999.0,0.157896]
[1739898541719,0.40001015,95000.0,94999.0,0.26039965]
[1739898541942,0.40001015,95000.0,94999.0,0.32720015]
[1739898542316,0.40001015,95000.0,94999.0,1.18283348]
[1739898542517,0.40001015,95000.0,94999.0,1.25973348]
[1739898543000,4.8e-07,95000.0,94999.0,1.29391762]
[1739898543201,4.8e-07,95009.0,95008.0,0.259481]
[1739898543514,4.8e-07,95009.0,95008.0,1.23761798]
[1739898543689,4.8e-07,95009.0,95008.0,1.45731798]
[1739898544334,0.0001703,95035.0,95034.0,0.157838]
[1739898544539,0.00061185,95035.0,95034.0,1.19697498]
[1739898545490,0.00061185,95035.0,95034.0,1.11597498]
[1739898545670,0.00061185,95035.0,95034.0,1.12297498]
[1739898545884,0.00061185,95035.0,95034.0,0.96513698]
[1739898546680,0.15844785,95035.0,95034.0,0.96513698]
[1739898546886,0.00061185,95035.0,95034.0,0.96513698]
[1739898547534,0.00061185,95035.0,95034.0,0.86263333]
[1739898547957,0.23261185,95035.0,95034.0,0.31693333]
[1739898548170,0.23261185,95035.0,95034.0,0.30993333]
[1739898548388,0.23261185,95035.0,95034.0,0.31593333]
[1739898548610,0.23261185,95035.0,95034.0,0.006]
[1739898548823,0.157862,95020.0,95018.0,0.30993333]
[1739898550109,0.157862,95020.0,95018.0,0.31293333]
[1739898550947,0.2238174,95030.0,95018.0,0.31293333]
[1739898551207,0.08261185,95035.0,95019.0,0.10250365]
[1739898551416,2.8408,95034.0,95019.0,0.10250365]
[1739898551632,0.157863,95019.0,95018.0,0.31293333]
[1739898552265,0.157863,95019.0,95018.0,0.31593333]
[1739898552471,0.157863,95019.0,95018.0,0.30993333]
[1739898552900,0.157863,95019.0,95018.0,0.31393333]
[1739898553116,0.0474,95018.0,94989.0,0.85563333]
[1739898553328,0.157896,94999.0,94990.0,0.10250365]
[1739898553545,0.157898,94998.0,94990.0,0.10250365]
[1739898553741,0.15,95009.0,94990.0,0.41243698]
[1739898554160,0.157908,94992.0,94990.0,0.41243698]
[1739898554388,0.157908,94992.0,94990.0,0.30993333]
[1739898554587,0.157908,94992.0,94990.0,0.31003565]
[1739898555192,0.157908,94992.0,94990.0,0.31103565]
[1739898555399,0.157908,94992.0,94990.0,0.31003565]
[1739898555808,0.4343444,95000.0,94990.0,0.31603565]
[1739898555940,0.15,95009.0,94990.0,0.31003565]
[1739898556147,0.15,94999.0,94990.0,0.31403565]
[1739898556359,0.15,94995.0,94990.0,0.31403565]
[1739898556565,0.210501,95012.0,94990.0,0.31403565]
[1739898556566,0.2238174,95020.0,94991.0,0.10250365]
[1739898556889,0.02086704,95014.0,94992.0,0.52153004]
[1739898557088,0.02086704,95014.0,94993.0,0.10250365]
[1739898557272,0.210497,95013.0,94997.0,0.157899]
[1739898557455,0.210504,95010.0,94998.0,0.26040065]
[1739898557656,0.157883,95007.0,94998.0,0.10250365]
[1739898557865,0.01279061,95013.0,94998.0,0.10250365]
[1739898558071,0.157881,95008.0,94998.0,0.10250365]
[1739898558405,0.157893,95001.0,94998.0,0.10250365]
[1739898558861,0.2238174,95010.0,94992.0,0.30993333]
[1739898559025,0.2238174,95010.0,94993.0,0.10250365]
[1739898559236,0.15,95019.0,94993.0,0.10250365]
[1739898559447,0.210497,95013.0,94993.0,0.10250365]
[1739898559646,0.15788,95009.0,94998.0,0.003]
[1739898559846,0.15788,95009.0,95000.0,0.157893]
[1739898560075,0.15788,95009.0,95001.0,0.10250365]
[1739898560615,0.02137136,95016.0,95001.0,0.10250365]
[1739898560815,0.210495,95014.0,95001.0,0.10250365]
[1739898561023,0.157891,95002.0,95001.0,0.10250365]
[1739898561740,0.157906,94993.0,94992.0,0.30993333]
[1739898562074,0.2238174,95002.0,94992.0,0.30993333]
[1739898562275,0.157898,94998.0,94992.0,0.30993333]
[1739898562473,0.4344915,95010.0,94992.0,0.30993333]
[1739898562687,4.869328,95009.0,94992.0,0.30993333]
[1739898562874,0.15,95007.0,94992.0,0.30993333]
[1739898563075,0.157906,94993.0,94992.0,0.30993333]
[1739898563284,0.2239875,95010.0,94992.0,0.30993333]
[1739898563483,0.2238174,95002.0,94992.0,0.30993333]
[1739898563934,0.157904,94994.0,94992.0,0.30993333]
[1739898564266,0.157906,94993.0,94992.0,0.31493333]
[1739898564449,0.210524,95001.0,94992.0,0.30993333]
[1739898564684,0.15,95009.0,94992.0,0.30993333]
[1739898564891,0.157899,94998.0,94992.0,0.30993333]
[1739898565099,0.15,95007.0,94993.0,0.210541]
[1739898565300,0.3344,95007.0,94994.0,0.10250365]
[1739898565435,0.157889,95004.0,94996.0,0.1579]
[1739898565638,0.157889,95004.0,94997.0,0.10250365]
[1739898565861,0.15,95006.0,94997.0,0.10250365]
[1739898566132,0.2091,95005.0,94997.0,0.10250365]
[1739898566319,0.157884,95006.0,94997.0,0.10250365]
[1739898566525,0.001,95009.0,94998.0,0.157898]
[1739898566720,0.001,95009.0,94998.0,0.26040165]
[1739898566936,0.157885,95006.0,94999.0,0.157896]
[1739898567143,0.001,95009.0,94998.0,0.10250365]
[1739898567346,0.0001701,95010.0,94998.0,0.10250365]
[1739898567552,0.157883,95007.0,94999.0,0.26039865]
[1739898567749,0.0001701,95010.0,94997.0,0.210532]
[1739898567959,0.0001701,95010.0,95009.0,0.157879]
[1739898568173,0.0001701,95010.0,95009.0,0.26038265]
[1739898570959,0.0001701,95010.0,95009.0,0.26638265]
[1739898571673,0.0001701,95010.0,95009.0,0.57631598]
[1739898572974,0.0001701,95010.0,95009.0,0.41843698]
[1739898573326,0.0001701,95010.0,95009.0,0.57631598]
[1739898576041,0.0001701,95010.0,95009.0,0.57665618]
[1739898588198,0.1580481,95010.0,95009.0,0.31627353]
[1739898588407,0.33187291,95010.0,95009.0,0.0063402]
[1739898588614,0.36821496,95010.0,95009.0,0.0063402]
[1739898588854,5.11054296,95010.0,95009.0,0.0063402]
[1739898589020,5.11054296,95010.0,94990.0,0.00044252]
[1739898589021,0.023,95008.0,94990.0,0.00044252]
[1739898589258,0.157909,94991.0,94990.0,0.00044252]
[1739898590846,0.14919745,95000.0,94990.0,0.00044252]
[1739898591071,0.24961598,95010.0,94990.0,0.10294617]
[1739898591232,0.02101853,95010.0,94990.0,0.10294617]
[1739898591431,0.157893,95001.0,94991.0,0.157908]
[1739898591674,0.15,95007.0,94990.0,0.10294617]
[1739898591848,0.21053,94999.0,94990.0,0.10294617]
[1739898592052,0.14919745,95000.0,94990.0,0.10294617]
[1739898592281,0.14919745,95000.0,94990.0,0.00044252]
[1739898592615,0.157909,94991.0,94990.0,0.00044252]
[1739898594772,0.17853582,94993.0,94990.0,0.00044252]
[1739898595093,0.1887,94992.0,94990.0,0.00044252]
[1739898595307,0.0758,95006.0,94990.0,0.00044252]
[1739898595308,0.0484,95022.0,94991.0,0.10250365]
[1739898595627,0.304,95009.0,94995.0,0.157901]
[1739898595833,0.157886,95005.0,94991.0,0.10250365]
[1739898596042,0.02081035,95009.0,94999.0,0.157895]
[1739898596256,0.02081035,95009.0,94996.0,0.157901]
[1739898596461,0.157884,95006.0,94991.0,0.10250365]
[1739898596699,0.157886,95005.0,94998.0,0.157898]
[1739898596875,0.157884,95007.0,94998.0,0.157898]
[1739898597078,0.21051,95008.0,94998.0,0.157898]
[1739898597294,0.02081035,95009.0,94995.0,0.210536]
[1739898597633,0.17081035,95009.0,94991.0,0.10250365]
[1739898597837,0.17081035,95009.0,94995.0,0.157901]
[1739898597956,0.157889,95003.0,94995.0,0.157901]
[1739898598156,0.210513,95006.0,94991.0,0.10250365]
[1739898598363,0.210513,95006.0,94996.0,0.1579]
[1739898598560,0.157889,95004.0,94994.0,0.210539]
[1739898598791,0.157888,95005.0,94995.0,0.210536]
[1739898598986,0.0001701,95010.0,95004.0,0.157886]
[1739898599246,0.0001701,95010.0,95004.0,0.157887]
[1739898599446,0.157884,95006.0,94998.0,0.157896]
[1739898599657,0.157887,95005.0,94998.0,0.1582362]
[1739898599860,0.02084451,95010.0,94998.0,0.0003402]
[1739898599987,0.157896,94999.0,94998.0,0.0003402]
[1739898600793,2.395296,94999.0,94998.0,0.0003402]
[1739898601004,0.307896,94999.0,94998.0,0.0003402]
[1739898601246,0.02084451,95010.0,94998.0,0.0003402]
[1739898601741,0.157896,94999.0,94998.0,0.0003402]
[1739898602143,4.877224,94999.0,94998.0,0.0003402]
[1739898602350,5.027224,94999.0,94998.0,0.0003402]
[1739898602531,4.479796,94999.0,94998.0,0.0003402]
[1739898602735,3.841196,94999.0,94998.0,0.0003402]
[1739898605188,3.94369965,94999.0,94998.0,0.0003402]
[1739898606249,3.841196,94999.0,94998.0,0.0003402]
[1739898607644,0.15,94998.0,94988.0,0.0003402]
[1739898607843,0.307909,94991.0,94988.0,0.0003402]
[1739898608045,5.027237,94991.0,94988.0,0.0003402]
[1739898608891,0.15,94990.0,94988.0,0.0003402]
[1739898609094,0.307942,94971.0,94970.0,0.0003404]
[1739898609271,5.02727,94971.0,94970.0,0.0003404]
[1739898610075,5.10707,94971.0,94970.0,0.0003404]
[1739898610242,0.307977,94950.0,94929.0,0.39133333]
[1739898610447,5.027305,94950.0,94949.0,0.00040086]
[1739898610648,5.12980865,94950.0,94949.0,6.046e-05]
[1739898610852,4.97183165,94950.0,94919.0,0.0814]
[1739898611059,0.15,94948.0,94920.0,0.10250365]
[1739898611255,0.210648,94945.0,94920.0,0.10250365]
[1739898611539,0.33438556,94950.0,94920.0,0.10250365]
[1739898611741,0.15,94948.0,94921.0,0.00105347]
[1739898612068,0.15,94943.0,94922.0,0.31320265]
[1739898612274,0.157991,94942.0,94932.0,0.158006]
[1739898612468,0.15,94943.0,94934.0,0.158004]
[1739898612818,0.6718,94942.0,94932.0,0.10250365]
[1739898612993,0.89572489,94942.0,94919.0,0.39144963]
[1739898613235,0.158015,94928.0,94920.0,0.10250365]
[1739898613454,0.210657,94941.0,94920.0,0.10250365]
[1739898613625,0.15,94940.0,94920.0,0.10250365]
[1739898613830,0.158011,94930.0,94920.0,0.10250365]
[1739898614032,0.15,94940.0,94920.0,0.10250365]
[1739898614231,0.158008,94932.0,94922.0,0.158024]
[1739898614408,0.158008,94932.0,94922.0,0.26052665]
[1739898614629,0.210673,94934.0,94922.0,0.26052665]
[1739898614780,0.158004,94934.0,94924.0,0.15802]
[1739898614974,0.15,94940.0,94925.0,0.10250365]
[1739898615188,0.01203216,94940.0,94925.0,0.10250365]
[1739898615387,0.15,94940.0,94925.0,0.10250365]
[1739898615793,0.01206409,94942.0,94925.0,0.10250365]
[1739898616001,0.157972,94954.0,94944.0,0.157987]
[1739898616215,0.00781953,94958.0,94928.0,0.00105328]
[1739898616413,0.00781953,94958.0,94930.0,0.210681]
[1739898616796,0.15,94956.0,94932.0,0.210677]
[1739898617043,0.157984,94946.0,94933.0,0.10250365]
[1739898617298,0.00781953,94958.0,94933.0,0.10250365]
[1739898617495,0.15,94954.0,94935.0,0.21067]
[1739898617714,0.15,94954.0,94934.0,0.0767]
[1739898617715,0.15,94954.0,94936.0,0.10250365]
[1739898617902,0.15,94952.0,94936.0,0.10250365]
[1739898618249,0.15,94952.0,94937.0,0.157999]
[1739898618451,0.15,94952.0,94925.0,0.0767]
[1739898618452,0.22392489,94950.0,94925.0,0.0767]
[1739898618709,0.210661,94939.0,94927.0,0.26051965]
[1739898618911,0.15,94948.0,94927.0,0.10250365]
[1739898619116,0.14950414,94970.0,94930.0,0.14950414]
[1739898619330,0.02868615,94972.0,94940.0,0.22840414]
[1739898619581,0.14950414,94990.0,94948.0,0.0841866]
[1739898619851,0.01200638,94966.0,94950.0,0.14950414]
[1739898620065,0.06392241,94989.0,94960.0,0.15796]
[1739898620330,0.15,94979.0,94961.0,0.10250365]
[1739898620555,0.157941,94972.0,94961.0,0.10250365]
[1739898620762,0.15,94977.0,94962.0,0.157957]
[1739898620961,0.210584,94974.0,94961.0,0.10250365]
[1739898621177,0.15794,94973.0,94961.0,0.10250365]
[1739898621385,0.157941,94972.0,94962.0,0.157956]
[1739898621587,0.1868347,94977.0,94962.0,0.157956]
[1739898621788,0.157944,94970.0,94961.0,0.10250365]
[1739898622007,0.157943,94971.0,94961.0,0.26046265]
[1739898622210,0.157943,94971.0,94962.0,0.157957]
[1739898622410,0.1868347,94977.0,94962.0,0.157957]
[1739898622535,0.157942,94972.0,94961.0,0.26046265]
[1739898622978,0.157943,94971.0,94961.0,0.26046265]
[1739898623363,0.01324623,94976.0,94961.0,0.10250365]
[1739898623564,0.0368347,94977.0,94961.0,0.10250365]
[1739898623787,0.157945,94970.0,94961.0,0.10250365]
[1739898623937,0.157945,94970.0,94961.0,0.26046265]
[1739898624140,0.157942,94972.0,94961.0,0.26046265]
[1739898624340,0.0001702,94972.0,94961.0,0.10250365]
[1739898624539,0.0001702,94972.0,94971.0,0.233042]
[1739898625664,0.0001702,94972.0,94971.0,0.33554565]
[1739898626086,0.04364985,94989.0,94971.0,0.33554565]
[1739898626286,0.0001324,94989.0,94972.0,0.31308965]
[1739898626486,0.22571124,94988.0,94971.0,0.38503333]